bitfinex/quotes_SOLUSD_20241115
["timestamp","ask_amount","ask_price","bid_price","bid_amount"]
[1731703223031,0.4493467,214.58,214.53,17.5798721]
[1731703223218,0.4493467,214.58,214.54,12.9186721]
[1731703224020,0.4493467,214.58,214.53,29.2331721]
[1731703224230,0.4493467,214.58,214.54,12.9186721]
[1731703224526,0.4493467,214.58,214.55,12.9186721]
[1731703225230,0.4493467,214.58,214.54,12.9186721]
[1731703225440,0.4493467,214.58,214.55,4.6609]
[1731703226432,13.3680188,214.58,214.54,4.6611]
[1731703226617,0.4493467,214.58,214.54,4.6611]
[1731703228030,0.4493467,214.58,214.57,12.9186721]
[1731703228326,0.4493467,214.58,214.57,57.0465361]
[1731703228531,7.31048568,214.66,214.58,67.104064]
[1731703228730,7.31048568,214.66,214.65,36.9465361]
[1731703228908,8.98309049,214.67,214.65,36.9465361]
[1731703229110,7.31048568,214.69,214.66,36.9465361]
[1731703229421,7.31048568,214.7,214.68,0.12549]
[1731703229815,12.9186721,214.69,214.67,22.8391]
[1731703230113,16.2196541,214.7,214.61,48.687464]
[1731703230318,12.9186721,214.64,214.62,2.59841341]
[1731703230518,12.9186721,214.64,214.6,18.0192]
[1731703230519,12.9186721,214.63,214.6,18.0192]
[1731703230720,7.31048568,214.69,214.61,2.59761642]
[1731703230908,11.96818568,214.7,214.6,6.3697]
[1731703231111,4.6577,214.7,214.61,2.59757164]
[1731703231334,4.6577,214.7,214.63,2.36128385]
[1731703231508,12.9186721,214.72,214.64,2.59757164]
[1731703231708,17.5759721,214.72,214.65,2.59757164]
[1731703231928,12.9186721,214.72,214.65,12.9186721]
[1731703232133,0.4493467,214.79,214.71,13.0441621]
[1731703232316,0.4493467,214.79,214.71,0.12549]
[1731703232719,0.4493467,214.79,214.72,0.12549]
[1731703233030,0.4493467,214.79,214.78,36.9465361]
[1731703234020,0.4493467,214.79,214.78,36.8210461]
[1731703234405,0.4493467,214.79,214.77,12.9186721]
[1731703234820,0.4493467,214.79,214.77,20.60016072]
[1731703235531,0.4493467,214.79,214.74,20.60016072]
[1731703235837,21.04950742,214.79,214.72,20.60016072]
[1731703236021,21.04950742,214.79,214.72,22.98611825]
[1731703236530,20.60016072,214.76,214.71,2.38595753]
[1731703236721,20.60016072,214.76,214.72,2.38595753]
[1731703236917,20.60016072,214.76,214.71,2.38595753]
[1731703237229,20.60016072,214.75,214.72,2.38595753]
[1731703237437,20.60016072,214.75,214.73,2.38595753]
[1731703237639,0.4493467,214.79,214.74,20.60016072]
[1731703237937,0.4493467,214.79,214.75,20.60016072]
[1731703238119,0.4493467,214.79,214.71,16.3009]
[1731703238120,0.4493467,214.79,214.74,20.60016072]
[1731703239130,0.4493467,214.79,214.75,20.60016072]
[1731703239430,0.4493467,214.79,214.74,20.60016072]
[1731703239822,0.4493467,214.79,214.75,20.60016072]
[1731703241120,0.4493467,214.79,214.74,2.34992172]
[1731703241121,20.60016072,214.78,214.74,2.34992172]
[1731703241437,20.60016072,214.77,214.7,20.60016072]
[1731703242016,20.60016072,214.77,214.7,22.92879239]
[1731703242218,20.60016072,214.75,214.67,22.92879239]
[1731703242434,20.60016072,214.76,214.69,20.60016072]
[1731703243039,20.60016072,214.77,214.7,20.60016072]
[1731703243215,4.6563,214.76,214.71,20.60016072]
[1731703243422,20.60016072,214.78,214.75,20.60016072]
[1731703243423,4.656,214.78,214.75,20.60016072]
[1731703244714,4.6559,214.78,214.75,20.60016072]
[1731703244918,0.4493467,214.79,214.76,20.60016072]
[1731703245119,5.1051467,214.79,214.77,20.60016072]
[1731703245816,5.1051467,214.79,214.76,20.60016072]
[1731703246029,5.1051467,214.79,214.74,20.60016072]
[1731703246338,5.1051467,214.79,214.72,20.60016072]
[1731703246544,20.60016072,214.78,214.71,20.60016072]
[1731703247126,4.6567,214.74,214.68,20.60016072]
[1731703247323,25.25686072,214.74,214.67,20.60016072]
[1731703247633,20.60016072,214.73,214.66,20.60016072]
[1731703247827,4.6567,214.74,214.64,20.60016072]
[1731703248142,4.6567,214.74,214.69,20.60016072]
[1731703248327,4.6567,214.74,214.68,20.60016072]
[1731703248516,20.60016072,214.71,214.61,24.9857883]
[1731703248723,20.60016072,214.7,214.63,20.60016072]
[1731703249150,20.60016072,214.66,214.58,9.87561133]
[1731703249358,20.60016072,214.64,214.57,20.60016072]
[1731703249514,20.0,214.72,214.56,16.312]
[1731703249719,20.0,214.72,214.56,18.6385883]
[1731703249941,20.0,214.72,214.56,16.312]
[1731703250127,20.0,214.73,214.57,2.3265883]
[1731703250321,20.0,214.73,214.56,18.6385883]
[1731703250543,20.60016072,214.7,214.63,20.60016072]
[1731703250842,20.60016072,214.68,214.61,20.60016072]
[1731703251043,4.6578,214.69,214.64,20.60016072]
[1731703251232,4.6578,214.69,214.66,20.60016072]
[1731703251426,4.6578,214.69,214.65,20.60016072]
[1731703251638,4.6578,214.69,214.63,20.60016072]
[1731703252039,25.25796072,214.69,214.62,20.60016072]
[1731703252421,20.60016072,214.68,214.61,20.60016072]
[1731703254525,20.0,214.71,214.64,20.60016072]
[1731703254735,20.0,214.69,214.63,20.60016072]
[1731703254942,40.60016072,214.69,214.62,20.60016072]
[1731703255546,20.0,214.69,214.63,20.60016072]
[1731703255757,4.658,214.68,214.65,20.60016072]
[1731703256045,4.6577,214.7,214.67,20.60016072]
[1731703256225,4.6567,214.74,214.69,20.60016072]
[1731703256545,4.6567,214.74,214.68,20.60016072]
[1731703257736,24.6567,214.74,214.69,20.60016072]
[1731703258049,4.6567,214.74,214.68,20.60016072]
[1731703258547,20.0,214.73,214.63,4.659]
[1731703258850,4.6572,214.72,214.67,20.60016072]
[1731703259555,20.60016072,214.71,214.64,20.60016072]
[1731703259850,20.60016072,214.67,214.6,32.24966072]
[1731703260258,20.60016072,214.65,214.58,20.60016072]
[1731703260552,20.60016072,214.63,214.56,20.60016072]
[1731703260749,20.60016072,214.61,214.54,36.09056072]
[1731703261136,24.6593,214.62,214.56,20.60016072]
[1731703261331,45.25946072,214.62,214.54,36.09056072]
[1731703261534,20.60016072,214.6,214.53,20.60016072]
[1731703261734,20.60016072,214.58,214.5,20.60016072]
[1731703262029,20.60016072,214.57,214.49,20.60016072]
[1731703262234,20.0,214.58,214.52,20.60016072]
[1731703262453,24.6593,214.62,214.47,16.4187]
[1731703262642,24.6593,214.62,214.57,20.60016072]
[1731703262951,4.6593,214.62,214.59,20.72565072]
[1731703263146,4.6576,214.7,214.59,0.12549]
[1731703263329,161.9,214.87,214.65,22.744]
[1731703263653,4.6549,214.83,214.78,0.12549]
[1731703263828,20.60016072,214.85,214.78,0.12549]
[1731703264025,4.6556,214.8,214.78,0.12549]
[1731703264450,4.6556,214.8,214.76,0.12549]
[1731703264748,4.6556,214.8,214.74,33.6066451]
[1731703265945,4.6556,214.8,214.75,33.4811551]
[1731703266260,4.6551,214.82,214.76,33.6066451]
[1731703267950,4.6553,214.81,214.76,33.6066451]
[1731703268252,24.6551,214.82,214.78,0.12549]
[1731703268460,4.6559,214.78,214.73,33.4811551]
[1731703268654,4.6559,214.78,214.74,0.12549]
[1731703269050,0.4493467,214.79,214.75,33.4811551]
[1731703269234,0.4493467,214.79,214.76,33.4811551]
[1731703269437,0.4493467,214.79,214.78,0.12549]
[1731703269944,4.6559,214.78,214.74,33.6066451]
[1731703270149,4.6559,214.78,214.75,33.4811551]
[1731703270448,4.6559,214.78,214.76,0.12549]
[1731703271358,33.4811551,214.77,214.76,0.12549]
[1731703271533,33.4811551,214.77,214.69,33.4811551]
[1731703271738,33.4811551,214.74,214.67,33.4811551]
[1731703271956,33.4811551,214.74,214.68,0.12549]
[1731703272162,33.4811551,214.71,214.64,33.4811551]
[1731703273052,33.4811551,214.68,214.59,16.6383]
[1731703273245,33.4811551,214.7,214.63,33.4811551]
[1731703273760,33.4811551,214.68,214.61,33.4811551]
[1731703274554,33.4811551,214.67,214.6,33.6066451]
[1731703274863,38.1396551,214.66,214.59,33.4811551]
[1731703275641,4.6585,214.66,214.6,33.4811551]
[1731703275966,4.6585,214.66,214.61,0.12549]
[1731703276165,20.0,214.67,214.63,33.4811551]
[1731703276366,24.6582,214.68,214.64,0.12549]
[1731703277044,33.4811551,214.73,214.67,33.6066451]
[1731703277366,4.6567,214.74,214.69,33.4811551]
[1731703277579,38.1378551,214.74,214.7,0.12549]
[1731703278444,4.6567,214.74,214.69,0.12549]
[1731703278636,24.6567,214.74,214.69,0.12549]
[1731703279162,24.6567,214.74,214.69,33.6066451]
[1731703279663,33.4811551,214.73,214.69,0.12549]
[1731703279851,53.4811551,214.7,214.63,33.4811551]
[1731703280052,20.0,214.7,214.64,33.6066451]
[1731703280252,53.4811551,214.7,214.63,33.4811551]
[1731703280457,4.6578,214.69,214.53,6.4775]
[1731703280856,4.6578,214.69,214.55,11.6518]
[1731703281364,23.902374,214.67,214.55,11.6518]
[1731703281567,20.0,214.66,214.54,15.053]
[1731703281771,33.4811551,214.63,214.56,33.4811551]
[1731703282167,33.4811551,214.62,214.55,33.4811551]
[1731703282562,4.6596,214.61,214.55,33.4811551]
[1731703283065,33.4811551,214.58,214.51,33.4811551]
[1731703283374,20.0,214.6,214.52,33.4811551]
[1731703283546,33.4811551,214.58,214.52,33.4811551]
[1731703283747,33.4811551,214.59,214.52,33.4811551]
[1731703284074,20.0,214.6,214.46,16.3198]
[1731703284075,20.0,214.58,214.53,33.4811551]
[1731703284453,58.1411551,214.59,214.52,33.4811551]
[1731703285057,24.66,214.59,214.53,20.772302]
[1731703285554,45.306812,214.59,214.53,0.12549]
[1731703286055,4.6604,214.57,214.52,0.12549]
[1731703286267,4.6604,214.57,214.52,20.772302]
[1731703286567,25.307212,214.57,214.51,0.12549]
[1731703286772,4.6604,214.57,214.51,20.646812]
[1731703286974,24.6604,214.57,214.52,0.12549]
[1731703287551,4.6604,214.57,214.52,20.772302]
[1731703289755,4.6604,214.57,214.51,20.646812]
[1731703289975,4.6604,214.57,214.52,0.12549]
[1731703290571,25.307212,214.57,214.5,20.772302]
[1731703291880,20.646812,214.54,214.5,0.12549]
[1731703292061,20.646812,214.51,214.44,15.2722]
[1731703292380,16.3116,214.57,214.35,23.4261]
[1731703292381,20.646812,214.48,214.41,20.646812]
[1731703292681,21.794,214.54,214.41,4.6639]
[1731703292682,24.6613,214.53,214.41,4.6639]
[1731703293462,24.6613,214.53,214.42,0.12549]
[1731703293662,25.9832,214.6,214.49,20.772302]
[1731703293878,19.8569,214.6,214.56,20.646812]
[1731703294073,4.6598,214.6,214.57,20.646812]
[1731703294979,20.646812,214.62,214.55,20.772302]
[1731703295163,20.0,214.58,214.51,20.646812]
[1731703295363,20.0,214.58,214.52,20.772302]
[1731703295757,40.646812,214.58,214.52,0.12549]
[1731703296688,20.646812,214.57,214.51,0.12549]
[1731703296987,40.646812,214.52,214.44,20.646812]
[1731703297162,20.646812,214.5,214.42,36.969512]
[1731703297481,4.6613,214.53,214.42,36.969512]
[1731703297482,4.6613,214.53,214.42,16.3227]
[1731703298082,4.6613,214.53,214.42,11.6592]
[1731703298465,20.0,214.52,214.47,0.12549]
[1731703298674,40.646812,214.52,214.46,0.12549]
[1731703298881,20.646812,214.51,214.46,0.12549]
[1731703299083,33.57692553,214.5,214.44,0.12549]
[1731703299496,53.57692553,214.52,214.46,0.12549]
[1731703299970,4.6617,214.51,214.46,0.12549]
[1731703300486,38.23862553,214.51,214.46,0.12549]
[1731703300661,4.6617,214.51,214.46,0.12549]
[1731703301180,4.6615,214.53,214.48,33.57692553]
[1731703301385,4.6615,214.53,214.47,33.57692553]
[1731703301562,4.6615,214.53,214.48,0.12549]
[1731703301974,33.57692553,214.52,214.46,0.12549]
[1731703302173,33.57692553,214.51,214.46,0.12549]
[1731703302372,33.57692553,214.51,214.44,0.12549]
[1731703302584,33.57692553,214.51,214.44,33.57692553]
[1731703302890,33.57692553,214.51,214.45,0.12549]
[1731703303573,33.57692553,214.5,214.43,0.12549]
[1731703303888,33.57692553,214.51,214.43,33.70241553]
[1731703304087,4.662,214.5,214.44,33.57692553]
[1731703304273,33.57692553,214.56,214.5,0.12549]
[1731703304594,33.57692553,214.55,214.5,0.12549]
[1731703304893,33.57692553,214.55,214.49,0.12549]
[1731703305093,33.57692553,214.54,214.49,0.12549]
[1731703305274,33.57692553,214.51,214.44,0.12549]
[1731703305589,33.57692553,214.5,214.44,0.12549]
[1731703305782,0.1,214.58,214.44,33.70241553]
[1731703305985,33.57692553,214.51,214.44,33.57692553]
[1731703306179,33.57692553,214.53,214.47,33.57692553]
[1731703306385,38.23732553,214.57,214.44,23.902374]
[1731703306579,4.6604,214.57,214.51,33.57692553]
[1731703306777,4.6604,214.57,214.52,33.57692553]
[1731703306968,4.6604,214.57,214.53,33.57692553]
[1731703307484,4.6604,214.57,214.54,0.12549]
[1731703308190,33.57692553,214.62,214.56,33.57692553]
[1731703308367,4.6597,214.61,214.57,0.12549]
[1731703308573,4.6597,214.61,214.58,33.57692553]
[1731703308786,4.6597,214.61,214.59,0.12549]
[1731703309393,4.6597,214.61,214.58,0.12549]
[1731703309775,24.6589,214.64,214.58,0.12549]
[1731703310298,38.23582553,214.64,214.58,0.12549]
[1731703310504,20.0,214.63,214.58,0.12549]
[1731703310801,4.6593,214.62,214.58,0.12549]
[1731703311015,4.6593,214.62,214.57,0.12549]
[1731703311373,33.57692553,214.61,214.57,0.12549]
[1731703311601,53.57692553,214.58,214.5,33.57692553]
[1731703311895,33.57692553,214.57,214.5,33.57692553]
[1731703312469,33.57692553,214.59,214.52,33.57692553]
[1731703312772,4.6598,214.6,214.51,4.6617]
[1731703312973,20.0,214.58,214.52,33.57692553]
[1731703313497,20.0,214.58,214.53,0.12549]
[1731703314202,20.0,214.58,214.47,6.0172]
[1731703314203,20.0,214.53,214.46,33.57692553]
[1731703314369,53.57692553,214.53,214.46,33.57692553]
[1731703314578,20.0,214.53,214.47,33.57692553]
[1731703314771,22.4112,214.56,214.47,33.57692553]
[1731703314772,53.57692553,214.55,214.47,33.57692553]
[1731703314984,33.57692553,214.54,214.47,33.57692553]
[1731703315277,53.57692553,214.55,214.47,33.57692553]
[1731703315598,16.3116,214.57,214.51,0.12549]
[1731703315599,38.23732553,214.57,214.51,0.12549]
[1731703316171,4.6604,214.57,214.53,0.12549]
[1731703316681,4.6602,214.59,214.56,0.12549]
[1731703316990,4.6598,214.61,214.58,0.12549]
[1731703317174,4.6598,214.61,214.56,33.70241553]
[1731703317798,4.6598,214.61,214.57,33.57692553]
[1731703317989,33.57692553,214.58,214.56,0.12549]
[1731703318195,33.57692553,214.6,214.56,0.12549]
[1731703318493,33.57692553,214.59,214.52,33.70241553]
[1731703318877,33.57692553,214.58,214.52,0.12549]
[1731703319081,33.57692553,214.56,214.5,0.12549]
[1731703319281,33.57692553,214.53,214.46,38.23962553]
[1731703319490,33.57692553,214.54,214.46,38.23962553]
[1731703319695,33.57692553,214.53,214.46,33.57692553]
[1731703320087,38.23842553,214.53,214.46,33.57692553]
[1731703320605,38.23842553,214.53,214.47,0.12549]
[1731703320899,25.31876225,214.53,214.47,0.12549]
[1731703321097,20.65726225,214.52,214.47,0.12549]
[1731703321287,20.65726225,214.52,214.46,23.902374]
[1731703321603,4.6615,214.53,214.47,20.65726225]
[1731703321805,20.65726225,214.51,214.46,23.902374]
[1731703321977,20.65726225,214.52,214.46,23.902374]
[1731703322501,4.6615,214.53,214.47,20.65726225]
[1731703323083,4.6615,214.53,214.48,0.12549]
[1731703323282,4.6615,214.53,214.48,20.65726225]
[1731703323479,4.6615,214.53,214.48,0.12549]
[1731703323888,4.661,214.55,214.49,20.65726225]
[1731703324095,25.31806225,214.56,214.5,0.12549]
[1731703324303,4.6608,214.56,214.5,20.78275225]
[1731703324507,4.6604,214.58,214.52,20.78275225]
[1731703324687,4.6604,214.58,214.54,0.12549]
[1731703325104,25.31766225,214.58,214.54,0.12549]
[1731703325605,25.31766225,214.58,214.51,20.65726225]
[1731703325606,20.0,214.57,214.52,0.12549]
[1731703326313,20.65726225,214.6,214.53,20.65726225]
[1731703326503,20.65726225,214.61,214.54,20.65726225]
[1731703326819,4.6591,214.63,214.58,20.78275225]
[1731703326987,4.6587,214.65,214.6,0.12549]
[1731703327306,4.6587,214.65,214.53,0.12549]
[1731703327508,161.9,214.68,214.53,23.902374]
[1731703327687,11.6468,214.65,214.54,4.6611]
[1731703327998,11.6468,214.65,214.53,23.902374]
[1731703328305,20.65726225,214.61,214.55,0.12549]
[1731703328810,20.0,214.64,214.55,0.12549]
[1731703328811,40.65726225,214.6,214.55,0.12549]
[1731703329032,20.65726225,214.58,214.53,0.12549]
[1731703329482,20.65726225,214.57,214.53,0.12549]
[1731703329908,20.65726225,214.57,214.52,15.0681]
[1731703330405,40.65726225,214.57,214.52,15.0681]
[1731703330602,20.0,214.57,214.52,15.0681]
[1731703330792,20.0,214.6,214.54,20.65726225]
[1731703331305,40.65726225,214.61,214.54,20.65726225]
[1731703331516,4.6598,214.6,214.55,0.12549]
[1731703333287,4.6598,214.6,214.55,20.78275225]
[1731703333488,4.6598,214.6,214.55,0.12549]
[1731703334491,25.31706225,214.6,214.54,0.12549]
[1731703334797,25.31766225,214.57,214.53,0.12549]
[1731703334994,20.65726225,214.56,214.53,0.12549]
[1731703335891,20.65726225,214.54,214.43,11.6583]
[1731703336089,20.65726225,214.48,214.43,11.6583]
[1731703336293,20.65726225,214.52,214.45,20.65726225]
[1731703336507,20.0,214.53,214.47,20.65726225]
[1731703336709,4.6607,214.56,214.43,16.3218]
[1731703336890,4.6607,214.56,214.42,16.6312]
[1731703336891,0.12549,214.55,214.42,16.6312]
[1731703337409,0.12549,214.53,214.39,11.6608]
[1731703337707,0.12549,214.51,214.37,16.6312]
[1731703337890,20.65726225,214.42,214.37,16.6312]
[1731703338315,20.65726225,214.43,214.37,16.6312]
[1731703339107,20.65726225,214.42,214.37,16.6312]
[1731703339427,20.65726225,214.42,214.38,0.12549]
[1731703340413,20.65726225,214.43,214.38,0.12549]
[1731703340913,20.65726225,214.39,214.3,25.32346225]
[1731703341214,20.65726225,214.37,214.3,25.32346225]
[1731703341713,20.65726225,214.37,214.3,36.98926225]
[1731703342109,25.32206225,214.37,214.3,36.98926225]
[1731703342295,20.65726225,214.34,214.28,20.8971]
[1731703342500,20.65726225,214.35,214.28,36.88766225]
[1731703342821,20.65726225,214.35,214.28,41.55426225]
[1731703342993,20.65726225,214.36,214.29,20.65726225]
[1731703343193,20.65726225,214.35,214.28,41.55426225]
[1731703343411,20.65726225,214.34,214.28,4.6666]
[1731703343609,20.65726225,214.37,214.3,20.65726225]
[1731703343910,20.65726225,214.32,214.25,11.6681]
[1731703344116,20.65726225,214.39,214.22,34.444642]
[1731703344117,20.65726225,214.31,214.24,20.65726225]
[1731703344413,0.1,214.37,214.22,15.7795]
[1731703344414,20.12549,214.35,214.22,15.7795]
[1731703345207,0.12549,214.36,214.22,15.7795]
[1731703345405,20.65726225,214.27,214.22,15.7795]
[1731703346069,20.65726225,214.28,214.22,15.7795]
[1731703346511,20.65726225,214.27,214.22,15.7795]
[1731703346722,20.65726225,214.28,214.23,0.12549]
[1731703347024,20.65726225,214.32,214.25,20.65726225]
[1731703347199,20.0,214.31,214.26,0.12549]
[1731703347522,20.65726225,214.32,214.26,0.12549]
[1731703347927,20.65726225,214.31,214.24,20.78275225]
[1731703348429,20.65726225,214.31,214.24,37.11935225]
[1731703348920,20.65726225,214.37,214.3,20.65726225]
[1731703349097,20.65726225,214.4,214.34,20.65726225]
[1731703349303,4.6634,214.44,214.35,0.12549]
[1731703349714,20.65726225,214.4,214.35,0.12549]
[1731703350127,20.65726225,214.4,214.35,4.79069]
[1731703350328,20.65726225,214.41,214.35,4.79069]
[1731703350626,20.65726225,214.42,214.36,20.65726225]
[1731703350808,20.65726225,214.43,214.37,0.12549]
[1731703351008,20.65726225,214.44,214.37,20.78275225]
[1731703351509,20.65726225,214.45,214.39,0.12549]
[1731703351717,20.65726225,214.41,214.36,0.12549]
[1731703352325,20.65726225,214.42,214.36,0.12549]
[1731703353428,20.65726225,214.42,214.36,4.79039]
[1731703353621,20.65726225,214.45,214.38,20.65726225]
[1731703353936,4.6622,214.49,214.4,0.12549]
[1731703353937,20.65726225,214.46,214.4,0.12549]
[1731703354102,4.6622,214.49,214.4,20.78275225]
[1731703354103,20.65726225,214.47,214.4,20.78275225]
[1731703354309,20.65726225,214.46,214.4,0.12549]
[1731703354510,20.65726225,214.47,214.4,20.78275225]
[1731703354711,20.65726225,214.47,214.42,0.12549]
[1731703355317,20.65726225,214.46,214.42,0.12549]
[1731703355521,20.0,214.42,214.35,11.6629]
[1731703355826,20.65726225,214.41,214.35,16.3281]
[1731703356122,20.65726225,214.44,214.37,20.65726225]
[1731703356429,24.6622,214.49,214.38,20.65726225]
[1731703356606,20.65726225,214.41,214.35,11.6629]
[1731703356805,20.65726225,214.41,214.36,0.12549]
[1731703357017,20.65726225,214.45,214.39,0.12549]
[1731703357519,20.65726225,214.46,214.39,20.78275225]
[1731703357832,20.65726225,214.45,214.39,0.12549]
[1731703358328,20.65726225,214.46,214.39,20.78275225]
[1731703358525,20.65726225,214.48,214.41,20.65726225]
[1731703358711,20.65726225,214.5,214.43,20.78275225]
[1731703358916,25.31916225,214.51,214.45,0.12549]
[1731703359826,20.65726225,214.5,214.44,0.12549]
[1731703360031,20.65726225,214.53,214.46,0.12549]
[1731703360233,4.6607,214.56,214.46,0.12549]
[1731703360234,20.65726225,214.52,214.46,0.12549]
[1731703360419,20.65726225,214.53,214.46,20.78275225]
[1731703361136,20.65726225,214.52,214.46,4.78829]
[1731703361339,20.65726225,214.5,214.45,0.12549]
[1731703361929,20.65726225,214.49,214.44,0.12549]
[1731703362241,20.65726225,214.5,214.44,0.12549]
[1731703363009,20.65726225,214.52,214.46,0.12549]
[1731703363226,20.0,214.53,214.47,20.78275225]
[1731703363431,20.65726225,214.54,214.47,20.78275225]
[1731703363636,20.65726225,214.53,214.47,0.12549]
[1731703364326,20.65726225,214.53,214.45,16.3207]
[1731703364327,4.6604,214.58,214.52,20.65726225]
[1731703364513,20.65726225,214.55,214.5,0.12549]
[1731703364712,20.65726225,214.56,214.5,0.12549]
[1731703365131,20.65726225,214.57,214.5,25.44455225]
[1731703365334,25.31766225,214.58,214.52,0.12549]
[1731703365631,25.31766225,214.58,214.5,0.12549]
[1731703365632,20.65726225,214.54,214.5,0.12549]
[1731703365811,20.0,214.56,214.51,20.78275225]
[1731703366018,4.6599,214.6,214.52,0.12549]
[1731703366510,20.65726225,214.54,214.51,0.12549]
[1731703366828,20.65726225,214.55,214.48,20.65726225]
[1731703367136,20.65726225,214.56,214.49,25.31926225]
[1731703367517,20.65726225,214.57,214.5,20.78275225]
[1731703367712,20.65726225,214.58,214.51,20.65726225]
[1731703367933,20.65726225,214.58,214.52,0.12549]
[1731703368123,20.65726225,214.56,214.52,0.12549]
[1731703368525,20.65726225,214.56,214.51,0.12549]
[1731703368725,20.65726225,214.56,214.51,4.78719]
[1731703369422,20.65726225,214.57,214.51,4.78719]
[1731703369811,20.65726225,214.55,214.51,4.78719]
[1731703370620,20.65726225,214.56,214.51,4.78719]
[1731703371226,20.65726225,214.53,214.5,0.12549]
[1731703371425,20.65726225,214.53,214.49,11.6555]
[1731703371629,20.65726225,214.55,214.49,16.3177]
[1731703371833,20.65726225,214.56,214.49,36.97496225]
[1731703372035,20.65726225,214.54,214.49,11.6555]
[1731703372222,20.65726225,214.61,214.49,11.6555]
[1731703372223,20.65726225,214.53,214.49,11.6555]
[1731703372823,20.65726225,214.53,214.5,0.12549]
[1731703373040,20.65726225,214.51,214.41,20.65726225]
[1731703373223,20.65726225,214.46,214.4,16.3242]
[1731703373420,20.65726225,214.45,214.4,11.6602]
[1731703373643,20.65726225,214.46,214.4,11.6602]
[1731703373844,20.0,214.56,214.43,27.6999]
[1731703374134,20.65726225,214.5,214.43,60.01596225]
[1731703374536,20.65726225,214.49,214.44,23.902374]
[1731703374919,20.65726225,214.49,214.44,0.12549]
[1731703375129,20.65726225,214.49,214.44,4.78859]
[1731703375328,20.65726225,214.5,214.44,4.78859]
[1731703375529,20.65726225,214.49,214.44,4.78859]
[1731703377036,20.65726225,214.47,214.43,34.6953]
[1731703377442,20.65726225,214.47,214.43,23.0365]
[1731703378343,20.65726225,214.45,214.43,16.4483]
[1731703378544,20.65726225,214.46,214.43,16.4483]
[1731703379949,20.65726225,214.48,214.43,16.4483]
[1731703380126,20.65726225,214.47,214.43,16.4483]
[1731703380332,20.65726225,214.45,214.41,0.12549]
[1731703380830,20.65726225,214.47,214.41,0.12549]
[1731703381149,20.65726225,214.47,214.4,25.32126225]
[1731703381443,20.65726225,214.46,214.4,4.664]
[1731703381648,20.65726225,214.45,214.4,4.664]
[1731703381946,20.65726225,214.48,214.41,20.65726225]
[1731703382149,20.65726225,214.48,214.42,0.12549]
[1731703382448,20.65726225,214.47,214.4,20.78275225]
[1731703382941,20.65726225,214.48,214.42,0.12549]
[1731703383353,20.65726225,214.48,214.43,4.6635]
[1731703383578,20.65726225,214.48,214.44,0.12549]
[1731703383751,161.9,214.54,214.44,0.12549]
[1731703383752,20.65726225,214.49,214.44,0.12549]
[1731703384044,20.75726225,214.61,214.44,0.12549]
[1731703384045,4.6598,214.6,214.5,16.603]
[1731703384238,20.65726225,214.59,214.53,0.12549]
[1731703384639,20.65726225,214.58,214.53,0.12549]
[1731703384939,20.65726225,214.58,214.52,0.12549]
[1731703386257,11.6469,214.65,214.52,0.12549]
[1731703386258,20.65726225,214.57,214.52,0.12549]
[1731703386629,40.65726225,214.6,214.53,20.78275225]
[1731703387152,20.65726225,214.59,214.53,0.12549]
[1731703387648,20.65726225,214.57,214.53,0.12549]
[1731703388150,20.65726225,214.58,214.53,0.12549]
[1731703388733,20.65726225,214.57,214.53,0.12549]
[1731703389138,20.65726225,214.58,214.53,0.12549]
[1731703389337,20.0,214.59,214.53,4.78679]
[1731703389657,20.65726225,214.59,214.53,4.78679]
[1731703390231,20.65726225,214.63,214.57,0.12549]
[1731703390434,20.65726225,214.64,214.57,20.78275225]
[1731703390741,20.65726225,214.64,214.57,0.12549]
[1731703390742,25.31636225,214.64,214.57,0.12549]
[1731703390943,25.31636225,214.64,214.51,0.12549]
[1731703390944,16.3065,214.64,214.51,0.12549]
[1731703391755,20.0,214.62,214.51,0.12549]
[1731703392140,20.65726225,214.57,214.51,0.12549]
[1731703392656,20.65726225,214.58,214.52,4.6615]
[1731703392829,32.90217696,214.59,214.53,0.12549]
[1731703393033,12.90217696,214.58,214.53,0.12549]
[1731703393441,12.90217696,214.57,214.52,16.3154]
[1731703393640,4.6598,214.61,214.53,0.12549]
[1731703393834,12.90217696,214.59,214.53,4.78679]
[1731703394051,12.90217696,214.58,214.52,11.6539]
[1731703394234,12.90217696,214.58,214.53,0.12549]